[Event "Titled Tuesday Blitz November 29 Early 2022"]
[White "Hoffmann, Asa"]
[Black "Ginzburg, Yakov"]
[WhiteFideId "2001470"]
[BlackFideId "4157176"]
[WhiteElo "2117"]
[BlackElo "2305"]
[Result "0-1"]
[Round "10"]
[TimeControl "180+1"]
[Date "2022.11.30"]
[WhiteClock "0:01:02"]
[BlackClock "0:00:10"]

1. d4 {[%clk 0:02:59]}  d5 {[%clk 0:02:59]} 2. Bg5 {[%clk 0:02:55]}  Nf6 {[%clk 0:02:57]} 3. Nd2 {[%clk 0:02:55]}  Qd6 {[%clk 0:02:53]} 4. Ngf3 {[%clk 0:02:51]}  Ne4 {[%clk 0:02:53]} 5. Be3 {[%clk 0:02:47]}  Bf5 {[%clk 0:02:49]} 6. g3 {[%clk 0:02:43]}  Nd7 {[%clk 0:02:39]} 7. Bg2 {[%clk 0:02:39]}  e5 {[%clk 0:02:32]} 8. Nh4 {[%clk 0:02:35]}  Qf6 {[%clk 0:02:23]} 9. Nxf5 {[%clk 0:02:32]}  Qxf5 {[%clk 0:02:23]} 10. Nxe4 {[%clk 0:02:30]}  dxe4 {[%clk 0:02:23]} 11. c3 {[%clk 0:02:21]}  Bd6 {[%clk 0:01:39]} 12. Qb3 {[%clk 0:02:14]}  O-O {[%clk 0:01:33]} 13. Qxb7 {[%clk 0:02:08]}  exd4 {[%clk 0:01:33]} 14. Bxd4 {[%clk 0:01:55]}  Nc5 {[%clk 0:01:30]} 15. Bxc5 {[%clk 0:01:47]}  Bxc5 {[%clk 0:01:30]} 16. O-O {[%clk 0:01:47]}  Rab8 {[%clk 0:01:29]} 17. Qxe4 {[%clk 0:01:46]}  Qxe4 {[%clk 0:01:28]} 18. Bxe4 {[%clk 0:01:45]}  Rxb2 {[%clk 0:01:29]} 19. Bd3 {[%clk 0:01:45]}  g6 {[%clk 0:01:17]} 20. Rfb1 {[%clk 0:01:44]}  Rfb8 {[%clk 0:01:17]} 21. Rxb2 {[%clk 0:01:44]}  Rxb2 {[%clk 0:01:18]} 22. a4 {[%clk 0:01:42]}  a5 {[%clk 0:01:17]} 23. Rc1 {[%clk 0:01:37]}  Kg7 {[%clk 0:01:12]} 24. Kg2 {[%clk 0:01:36]}  h5 {[%clk 0:01:11]} 25. Kf3 {[%clk 0:01:36]}  Kf6 {[%clk 0:01:05]} 26. Rc2 {[%clk 0:01:36]}  Rb1 {[%clk 0:00:54]} 27. e3 {[%clk 0:01:34]}  Ra1 {[%clk 0:00:48]} 28. Bb5 {[%clk 0:01:33]}  Rd1 {[%clk 0:00:48]} 29. h4 {[%clk 0:01:32]}  Ke5 {[%clk 0:00:41]} 30. Ke2 {[%clk 0:01:30]}  Rd6 {[%clk 0:00:41]} 31. Bd3 {[%clk 0:01:25]}  Rb6 {[%clk 0:00:40]} 32. f4+ {[%clk 0:01:24]}  Kf6 {[%clk 0:00:35]} 33. Bb5 {[%clk 0:01:23]}  Re6 {[%clk 0:00:30]} 34. Kf3 {[%clk 0:01:12]}  Rxe3+ {[%clk 0:00:30]} 35. Kg2 {[%clk 0:01:12]}  Bb6 {[%clk 0:00:29]} 36. c4 {[%clk 0:01:10]}  Bc5 {[%clk 0:00:30]} 37. Rd2 {[%clk 0:01:10]}  Rc3 {[%clk 0:00:24]} 38. Rd5 {[%clk 0:01:09]}  Rc2+ {[%clk 0:00:23]} 39. Kf3 {[%clk 0:01:08]}  Bb6 {[%clk 0:00:19]} 40. Be8 {[%clk 0:01:07]}  Ke7 {[%clk 0:00:19]} 41. Bb5 {[%clk 0:01:05]}  f5 {[%clk 0:00:17]} 42. Re5+ {[%clk 0:01:04]}  Kf6 {[%clk 0:00:11]} 43. Rd5 {[%clk 0:01:02]}  Rf2# {[%clk 0:00:10]} 0-1


[Site "https://www.chess.com"]

[Event "Titled Tuesday Blitz November 29 Early 2022"]
[White "Jumabayev, Rinat"]
[Black "Rosen, Eric"]
[WhiteFideId "13702661"]
[BlackFideId "2032562"]
[WhiteElo "2561"]
[BlackElo "2362"]
[Result "1-0"]
[Round "10"]
[TimeControl "180+1"]
[Date "2022.11.29"]
[WhiteClock "0:00:25"]
[BlackClock "0:00:01"]

1. e3 {[%clk 0:02:56]}  d5 {[%clk 0:02:59]} 2. Nf3 {[%clk 0:02:56]}  Nf6 {[%clk 0:02:58]} 3. b3 {[%clk 0:02:56]}  Bf5 {[%clk 0:02:54]} 4. Bb2 {[%clk 0:02:55]}  e6 {[%clk 0:02:55]} 5. Nh4 {[%clk 0:02:51]}  Bg6 {[%clk 0:02:54]} 6. Be2 {[%clk 0:02:49]}  Nbd7 {[%clk 0:02:52]} 7. d3 {[%clk 0:02:34]}  Bd6 {[%clk 0:02:52]} 8. Nd2 {[%clk 0:02:33]}  Qe7 {[%clk 0:02:44]} 9. a3 {[%clk 0:02:32]}  a5 {[%clk 0:02:40]} 10. c4 {[%clk 0:02:29]}  c6 {[%clk 0:02:39]} 11. h3 {[%clk 0:02:27]}  e5 {[%clk 0:02:35]} 12. cxd5 {[%clk 0:02:20]}  cxd5 {[%clk 0:02:33]} 13. O-O {[%clk 0:02:20]}  O-O {[%clk 0:02:30]} 14. Ndf3 {[%clk 0:02:04]}  Rfe8 {[%clk 0:02:24]} 15. Nxg6 {[%clk 0:02:00]}  hxg6 {[%clk 0:02:24]} 16. Qd2 {[%clk 0:01:43]}  b6 {[%clk 0:02:11]} 17. Rfc1 {[%clk 0:01:41]}  Rac8 {[%clk 0:02:10]} 18. Rc2 {[%clk 0:01:31]}  Nc5 {[%clk 0:01:47]} 19. Qd1 {[%clk 0:01:30]}  Ra8 {[%clk 0:01:12]} 20. Rcc1 {[%clk 0:01:14]}  Ncd7 {[%clk 0:00:51]} 21. Rc6 {[%clk 0:01:08]}  Rec8 {[%clk 0:00:44]} 22. Qc2 {[%clk 0:01:07]}  Qf8 {[%clk 0:00:38]} 23. Rc1 {[%clk 0:00:54]}  Rxc6 {[%clk 0:00:37]} 24. Qxc6 {[%clk 0:00:54]}  Bxa3 {[%clk 0:00:34]} 25. Bxa3 {[%clk 0:00:53]}  Qxa3 {[%clk 0:00:35]} 26. Qxa8+ {[%clk 0:00:54]}  Nf8 {[%clk 0:00:32]} 27. Rc8 {[%clk 0:00:53]}  Nd7 {[%clk 0:00:32]} 28. d4 {[%clk 0:00:46]}  exd4 {[%clk 0:00:14]} 29. Nxd4 {[%clk 0:00:47]}  Kh7 {[%clk 0:00:06]} 30. Qxd5 {[%clk 0:00:41]}  Qb4 {[%clk 0:00:05]} 31. Qxf7 {[%clk 0:00:39]}  Qe1+ {[%clk 0:00:05]} 32. Bf1 {[%clk 0:00:40]}  b5 {[%clk 0:00:04]} 33. Nxb5 {[%clk 0:00:35]}  a4 {[%clk 0:00:03]} 34. bxa4 {[%clk 0:00:34]}  Qa1 {[%clk 0:00:02]} 35. Rxf8 {[%clk 0:00:27]}  Nxf8 {[%clk 0:00:02]} 36. Qxf8 {[%clk 0:00:28]}  g5 {[%clk 0:00:03]} 37. Qf5+ {[%clk 0:00:26]}  g6 {[%clk 0:00:03]} 38. Qxg5 {[%clk 0:00:25]}  Kh8 {[%clk 0:00:01]} 39. Nd4 {[%clk 0:00:26]}  Qa2 {[%clk 0:00:01]} 40. Nf3 {[%clk 0:00:25]}  Qf7 {[%clk 0:00:01]} 41. Ne5 {[%clk 0:00:25]} 1-0


[Site "https://www.chess.com"]

[Event "Titled Tuesday Blitz November 29 Early 2022"]
[White "Kezin, Roman"]
[Black "Yurasova, Daria"]
[WhiteFideId "24124621"]
[BlackFideId "34146919"]
[WhiteElo "2501"]
[BlackElo "2097"]
[Result "1-0"]
[Round "10"]
[TimeControl "180+1"]
[Date "2022.11.29"]
[WhiteClock "0:01:42"]
[BlackClock "0:00:29"]

1. h4 {[%clk 0:02:59]}  d5 {[%clk 0:02:59]} 2. h5 {[%clk 0:03:00]}  h6 {[%clk 0:02:59]} 3. d4 {[%clk 0:03:00]}  Nf6 {[%clk 0:02:58]} 4. Nf3 {[%clk 0:03:01]}  Bf5 {[%clk 0:02:58]} 5. c4 {[%clk 0:02:58]}  e6 {[%clk 0:02:57]} 6. Nc3 {[%clk 0:02:58]}  Nbd7 {[%clk 0:02:57]} 7. Bf4 {[%clk 0:02:56]}  c6 {[%clk 0:02:56]} 8. e3 {[%clk 0:02:56]}  Be7 {[%clk 0:02:53]} 9. Be2 {[%clk 0:02:55]}  O-O {[%clk 0:02:53]} 10. Qb3 {[%clk 0:02:55]}  Qb6 {[%clk 0:02:51]} 11. c5 {[%clk 0:02:56]}  Qxb3 {[%clk 0:02:50]} 12. axb3 {[%clk 0:02:57]}  a6 {[%clk 0:02:49]} 13. b4 {[%clk 0:02:56]}  Bh7 {[%clk 0:02:46]} 14. Nd2 {[%clk 0:02:56]}  Rfe8 {[%clk 0:02:46]} 15. Nb3 {[%clk 0:02:56]}  Bd8 {[%clk 0:02:25]} 16. b5 {[%clk 0:02:53]}  e5 {[%clk 0:02:06]} 17. dxe5 {[%clk 0:02:51]}  Nxe5 {[%clk 0:02:07]} 18. Bxe5 {[%clk 0:02:38]}  Rxe5 {[%clk 0:02:07]} 19. bxa6 {[%clk 0:02:38]}  bxa6 {[%clk 0:02:07]} 20. Nd4 {[%clk 0:02:36]}  Re7 {[%clk 0:01:26]} 21. Nxc6 {[%clk 0:02:26]}  Rc7 {[%clk 0:01:26]} 22. Nxd8 {[%clk 0:02:26]}  Rxd8 {[%clk 0:01:27]} 23. b4 {[%clk 0:02:24]}  Rb8 {[%clk 0:01:27]} 24. Rh4 {[%clk 0:02:21]}  Be4 {[%clk 0:01:16]} 25. f3 {[%clk 0:02:19]}  Bf5 {[%clk 0:01:10]} 26. Rxa6 {[%clk 0:02:15]}  Re7 {[%clk 0:01:07]} 27. Kf2 {[%clk 0:02:11]}  Rbe8 {[%clk 0:01:06]} 28. Bb5 {[%clk 0:02:08]}  Rb8 {[%clk 0:01:01]} 29. Rd4 {[%clk 0:02:01]}  Reb7 {[%clk 0:00:57]} 30. Ra5 {[%clk 0:01:56]}  Be6 {[%clk 0:00:54]} 31. c6 {[%clk 0:01:51]}  Rc7 {[%clk 0:00:53]} 32. Ba4 {[%clk 0:01:48]}  Bd7 {[%clk 0:00:42]} 33. cxd7 {[%clk 0:01:41]}  Rxc3 {[%clk 0:00:41]} 34. Rc5 {[%clk 0:01:42]}  Rxc5 {[%clk 0:00:37]} 35. bxc5 {[%clk 0:01:43]}  Kf8 {[%clk 0:00:33]} 36. c6 {[%clk 0:01:42]}  Ke7 {[%clk 0:00:33]} 37. c7 {[%clk 0:01:42]}  Rb2+ {[%clk 0:00:34]} 38. Kg3 {[%clk 0:01:42]}  Nxh5+ {[%clk 0:00:29]} 39. Kh3 {[%clk 0:01:42]} 1-0


[Site "https://www.chess.com"]

[Event "Titled Tuesday Blitz November 29 Early 2022"]
[White "Ljukin, Sergei"]
[Black "Sellitti, Federico"]
[WhiteFideId "14102200"]
[BlackFideId "821829"]
[WhiteElo "2312"]
[BlackElo "2612"]
[Result "0-1"]
[Round "10"]
[TimeControl "180+1"]
[Date "2022.11.30"]
[WhiteClock "0:00:03"]
[BlackClock "0:02:12"]

1. e4 {[%clk 0:02:59]}  c5 {[%clk 0:03:00]} 2. Nf3 {[%clk 0:02:59]}  Nf6 {[%clk 0:03:01]} 3. Nc3 {[%clk 0:02:59]}  d5 {[%clk 0:03:01]} 4. exd5 {[%clk 0:02:59]}  Nxd5 {[%clk 0:03:02]} 5. Bb5+ {[%clk 0:02:54]}  Bd7 {[%clk 0:03:02]} 6. Ne5 {[%clk 0:02:18]}  Bxb5 {[%clk 0:03:00]} 7. Qf3 {[%clk 0:02:14]}  f6 {[%clk 0:03:00]} 8. Nxb5 {[%clk 0:02:14]}  fxe5 {[%clk 0:02:58]} 9. Qxd5 {[%clk 0:02:13]}  Qxd5 {[%clk 0:02:59]} 10. Nc7+ {[%clk 0:02:13]}  Kd7 {[%clk 0:03:00]} 11. Nxd5 {[%clk 0:02:13]}  g6 {[%clk 0:03:01]} 12. d3 {[%clk 0:02:08]}  Nc6 {[%clk 0:02:59]} 13. Be3 {[%clk 0:02:03]}  Nd4 {[%clk 0:02:59]} 14. O-O-O {[%clk 0:01:54]}  b6 {[%clk 0:02:57]} 15. Rhe1 {[%clk 0:01:53]}  h5 {[%clk 0:02:54]} 16. Kb1 {[%clk 0:01:18]}  Bg7 {[%clk 0:02:39]} 17. Bxd4 {[%clk 0:01:08]}  cxd4 {[%clk 0:02:40]} 18. c4 {[%clk 0:00:58]}  e6 {[%clk 0:02:40]} 19. Nb4 {[%clk 0:00:57]}  a5 {[%clk 0:02:33]} 20. Nc2 {[%clk 0:00:56]}  Rhf8 {[%clk 0:02:34]} 21. f3 {[%clk 0:00:55]}  g5 {[%clk 0:02:32]} 22. Re4 {[%clk 0:00:55]}  Rf4 {[%clk 0:02:30]} 23. Rde1 {[%clk 0:00:48]}  Raf8 {[%clk 0:02:29]} 24. h3 {[%clk 0:00:46]}  g4 {[%clk 0:02:28]} 25. hxg4 {[%clk 0:00:42]}  hxg4 {[%clk 0:02:28]} 26. fxg4 {[%clk 0:00:30]}  Rxe4 {[%clk 0:02:26]} 27. Rxe4 {[%clk 0:00:30]}  Rf1+ {[%clk 0:02:25]} 28. Re1 {[%clk 0:00:19]}  Rf2 {[%clk 0:02:25]} 29. b4 {[%clk 0:00:13]}  Rxg2 {[%clk 0:02:25]} 30. bxa5 {[%clk 0:00:12]}  bxa5 {[%clk 0:02:26]} 31. Re4 {[%clk 0:00:12]}  Kd6 {[%clk 0:02:24]} 32. Na3 {[%clk 0:00:11]}  Rd2 {[%clk 0:02:21]} 33. Nb5+ {[%clk 0:00:04]}  Kc5 {[%clk 0:02:20]} 34. Nc7 {[%clk 0:00:04]}  Kd6 {[%clk 0:02:14]} 35. Nb5+ {[%clk 0:00:04]}  Kc6 {[%clk 0:02:15]} 36. g5 {[%clk 0:00:03]}  Rxd3 {[%clk 0:02:14]} 37. Rh4 {[%clk 0:00:03]}  Rg3 {[%clk 0:02:12]} 0-1


[Site "https://www.chess.com"]

[Event "Titled Tuesday Blitz November 29 Early 2022"]
[White "Maksimovic, Bojan"]
[Black "Pinheiro, Iung Alicio de O."]
[WhiteFideId "14408120"]
[BlackFideId "2104350"]
[WhiteElo "2447"]
[BlackElo "2283"]
[Result "1-0"]
[Round "10"]
[TimeControl "180+1"]
[Date "2022.11.29"]
[WhiteClock "0:00:07"]
[BlackClock "0:00:09"]

1. e4 {[%clk 0:03:00]}  c5 {[%clk 0:02:59]} 2. Nf3 {[%clk 0:03:00]}  Nc6 {[%clk 0:02:59]} 3. d4 {[%clk 0:03:00]}  cxd4 {[%clk 0:03:00]} 4. Nxd4 {[%clk 0:03:01]}  e5 {[%clk 0:03:00]} 5. Nxc6 {[%clk 0:03:01]}  bxc6 {[%clk 0:03:00]} 6. Bd3 {[%clk 0:03:01]}  Nf6 {[%clk 0:02:50]} 7. O-O {[%clk 0:03:01]}  Bc5 {[%clk 0:02:39]} 8. Qe2 {[%clk 0:03:00]}  O-O {[%clk 0:02:38]} 9. Nc3 {[%clk 0:02:58]}  d5 {[%clk 0:02:29]} 10. exd5 {[%clk 0:02:32]}  cxd5 {[%clk 0:02:14]} 11. Qxe5 {[%clk 0:02:32]}  Re8 {[%clk 0:02:13]} 12. Qg5 {[%clk 0:02:19]}  h6 {[%clk 0:02:08]} 13. Qh4 {[%clk 0:02:16]}  Be7 {[%clk 0:01:46]} 14. Qg3 {[%clk 0:02:06]}  Bd6 {[%clk 0:01:44]} 15. Qh4 {[%clk 0:02:05]}  Be7 {[%clk 0:01:31]} 16. Qd4 {[%clk 0:01:52]}  Qa5 {[%clk 0:01:07]} 17. Be3 {[%clk 0:01:39]}  Be6 {[%clk 0:01:00]} 18. a3 {[%clk 0:01:36]}  Rec8 {[%clk 0:00:55]} 19. b4 {[%clk 0:01:30]}  Qc7 {[%clk 0:00:53]} 20. Ne2 {[%clk 0:01:30]}  Ne4 {[%clk 0:00:51]} 21. Bf4 {[%clk 0:01:25]}  Qb7 {[%clk 0:00:45]} 22. Qe3 {[%clk 0:01:22]}  Bf6 {[%clk 0:00:44]} 23. Rae1 {[%clk 0:01:02]}  Nc3 {[%clk 0:00:42]} 24. Be5 {[%clk 0:00:55]}  Ne4 {[%clk 0:00:16]} 25. Bxf6 {[%clk 0:00:43]}  Nxf6 {[%clk 0:00:17]} 26. Nd4 {[%clk 0:00:42]}  Re8 {[%clk 0:00:16]} 27. Qd2 {[%clk 0:00:30]}  Qc7 {[%clk 0:00:16]} 28. h3 {[%clk 0:00:28]}  Bd7 {[%clk 0:00:16]} 29. Rxe8+ {[%clk 0:00:27]}  Rxe8 {[%clk 0:00:17]} 30. Re1 {[%clk 0:00:27]}  Be6 {[%clk 0:00:16]} 31. Bf5 {[%clk 0:00:16]}  Qd7 {[%clk 0:00:15]} 32. Bxe6 {[%clk 0:00:13]}  fxe6 {[%clk 0:00:16]} 33. Nf3 {[%clk 0:00:13]}  Qd6 {[%clk 0:00:15]} 34. c4 {[%clk 0:00:12]}  Rd8 {[%clk 0:00:13]} 35. cxd5 {[%clk 0:00:12]}  exd5 {[%clk 0:00:14]} 36. Nd4 {[%clk 0:00:11]}  Qa6 {[%clk 0:00:14]} 37. Qc3 {[%clk 0:00:08]}  Ne4 {[%clk 0:00:12]} 38. Qc7 {[%clk 0:00:08]}  Rf8 {[%clk 0:00:11]} 39. f3 {[%clk 0:00:06]}  Qd3 {[%clk 0:00:11]} 40. Ne6 {[%clk 0:00:03]}  Rf7 {[%clk 0:00:05]} 41. Qc8+ {[%clk 0:00:03]}  Kh7 {[%clk 0:00:05]} 42. fxe4 {[%clk 0:00:02]}  Qd2 {[%clk 0:00:05]} 43. Qc1 {[%clk 0:00:02]}  Qd3 {[%clk 0:00:02]} 44. exd5 {[%clk 0:00:02]}  Qxd5 {[%clk 0:00:02]} 45. Qc2+ {[%clk 0:00:02]}  Kg8 {[%clk 0:00:02]} 46. Nc5 {[%clk 0:00:02]}  Qc6 {[%clk 0:00:02]} 47. Qe2 {[%clk 0:00:02]}  Rf6 {[%clk 0:00:02]} 48. Qe8+ {[%clk 0:00:02]}  Qxe8 {[%clk 0:00:02]} 49. Rxe8+ {[%clk 0:00:03]}  Kf7 {[%clk 0:00:03]} 50. Ra8 {[%clk 0:00:03]}  Rd6 {[%clk 0:00:02]} 51. Rxa7+ {[%clk 0:00:03]}  Kg8 {[%clk 0:00:03]} 52. Ra6 {[%clk 0:00:04]}  Rd1+ {[%clk 0:00:03]} 53. Kh2 {[%clk 0:00:05]}  Ra1 {[%clk 0:00:04]} 54. a4 {[%clk 0:00:05]}  g5 {[%clk 0:00:05]} 55. a5 {[%clk 0:00:05]}  h5 {[%clk 0:00:06]} 56. Rg6+ {[%clk 0:00:05]}  Kf7 {[%clk 0:00:05]} 57. Rxg5 {[%clk 0:00:06]}  h4 {[%clk 0:00:06]} 58. Rg4 {[%clk 0:00:07]}  Ra4 {[%clk 0:00:06]} 59. a6 {[%clk 0:00:07]}  Kf6 {[%clk 0:00:07]} 60. Rxh4 {[%clk 0:00:07]}  Kg5 {[%clk 0:00:08]} 61. Rg4+ {[%clk 0:00:08]}  Kf5 {[%clk 0:00:09]} 62. Re4 {[%clk 0:00:08]}  Ra1 {[%clk 0:00:07]} 63. h4 {[%clk 0:00:08]}  Ra2 {[%clk 0:00:07]} 64. Kh3 {[%clk 0:00:08]}  Ra3+ {[%clk 0:00:08]} 65. g3 {[%clk 0:00:08]}  Ra1 {[%clk 0:00:08]} 66. Rf4+ {[%clk 0:00:09]}  Ke5 {[%clk 0:00:08]} 67. Kg4 {[%clk 0:00:09]}  Rb1 {[%clk 0:00:08]} 68. b5 {[%clk 0:00:07]}  Rd1 {[%clk 0:00:09]} 69. a7 {[%clk 0:00:07]}  Rd8 {[%clk 0:00:10]} 70. b6 {[%clk 0:00:07]}  Rg8+ {[%clk 0:00:10]} 71. Kf3 {[%clk 0:00:07]}  Rc8 {[%clk 0:00:09]} 72. b7 {[%clk 0:00:07]}  Rxc5 {[%clk 0:00:09]} 73. b8=Q+ {[%clk 0:00:07]}  Kd5 {[%clk 0:00:09]} 74. a8=Q+ {[%clk 0:00:07]}  Ke6 {[%clk 0:00:09]} 75. Qe8+ {[%clk 0:00:07]}  Kd6 {[%clk 0:00:09]} 76. Qad8# {[%clk 0:00:07]} 1-0


[Site "https://www.chess.com"]

[Event "Titled Tuesday Blitz November 29 Early 2022"]
[White "Osinovsky, Stepan"]
[Black "Tokhirjonova, Gulrukhbegim"]
[WhiteFideId "4157354"]
[BlackFideId "14203626"]
[WhiteElo "2222"]
[BlackElo "2236"]
[Result "1-0"]
[Round "10"]
[TimeControl "180+1"]
[Date "2022.11.30"]
[WhiteClock "0:00:10"]
[BlackClock "0:00:42"]

1. Nf3 {[%clk 0:02:54]}  d5 {[%clk 0:02:57]} 2. g3 {[%clk 0:02:55]}  Nf6 {[%clk 0:02:55]} 3. Bg2 {[%clk 0:02:56]}  g6 {[%clk 0:02:55]} 4. O-O {[%clk 0:02:56]}  Bg7 {[%clk 0:02:56]} 5. d3 {[%clk 0:02:56]}  O-O {[%clk 0:02:57]} 6. Nbd2 {[%clk 0:02:56]}  c5 {[%clk 0:02:57]} 7. Re1 {[%clk 0:02:55]}  Nc6 {[%clk 0:02:58]} 8. e4 {[%clk 0:02:55]}  Re8 {[%clk 0:02:59]} 9. c3 {[%clk 0:02:54]}  e5 {[%clk 0:02:56]} 10. exd5 {[%clk 0:02:52]}  Nxd5 {[%clk 0:02:55]} 11. Nc4 {[%clk 0:02:49]}  f6 {[%clk 0:02:40]} 12. a4 {[%clk 0:02:49]}  Be6 {[%clk 0:02:38]} 13. a5 {[%clk 0:02:46]}  Qd7 {[%clk 0:02:38]} 14. Qa4 {[%clk 0:02:45]}  Rad8 {[%clk 0:02:37]} 15. Qb5 {[%clk 0:02:42]}  Bf8 {[%clk 0:02:30]} 16. Nfd2 {[%clk 0:02:40]}  a6 {[%clk 0:02:27]} 17. Qa4 {[%clk 0:02:39]}  Nc7 {[%clk 0:02:22]} 18. Nb6 {[%clk 0:01:43]}  Qxd3 {[%clk 0:02:18]} 19. Be4 {[%clk 0:01:02]}  Qd6 {[%clk 0:02:05]} 20. Ndc4 {[%clk 0:01:01]}  Qe7 {[%clk 0:02:05]} 21. Bxc6 {[%clk 0:00:59]}  bxc6 {[%clk 0:02:05]} 22. Qxc6 {[%clk 0:00:59]}  Nd5 {[%clk 0:02:04]} 23. Be3 {[%clk 0:00:55]}  Nxb6 {[%clk 0:01:49]} 24. Nxb6 {[%clk 0:00:53]}  Bh3 {[%clk 0:01:48]} 25. Rad1 {[%clk 0:00:50]}  Rxd1 {[%clk 0:01:45]} 26. Rxd1 {[%clk 0:00:51]}  Rd8 {[%clk 0:01:44]} 27. Nd5 {[%clk 0:00:43]}  Qf7 {[%clk 0:01:32]} 28. f3 {[%clk 0:00:41]}  Kg7 {[%clk 0:01:23]} 29. Kf2 {[%clk 0:00:38]}  c4 {[%clk 0:01:21]} 30. Rd2 {[%clk 0:00:30]}  Rd6 {[%clk 0:01:17]} 31. Qc7 {[%clk 0:00:25]}  Rd7 {[%clk 0:01:11]} 32. Qc6 {[%clk 0:00:23]}  Be6 {[%clk 0:01:05]} 33. Nb6 {[%clk 0:00:21]}  Rc7 {[%clk 0:01:01]} 34. Qa8 {[%clk 0:00:19]}  h5 {[%clk 0:00:58]} 35. h4 {[%clk 0:00:17]}  f5 {[%clk 0:00:50]} 36. Rd8 {[%clk 0:00:16]}  Be7 {[%clk 0:00:43]} 37. Rh8 {[%clk 0:00:14]}  Bf8 {[%clk 0:00:42]} 38. Rxf8 {[%clk 0:00:11]}  f4 {[%clk 0:00:41]} 39. Rxf7+ {[%clk 0:00:10]}  Rxf7 {[%clk 0:00:41]} 40. gxf4 {[%clk 0:00:11]}  exf4 {[%clk 0:00:42]} 41. Bd4+ {[%clk 0:00:11]}  Kh7 {[%clk 0:00:42]} 42. Qh8# {[%clk 0:00:10]} 1-0


[Site "https://www.chess.com"]

[Event "Titled Tuesday Blitz November 29 Early 2022"]
[White "Ovchinnikov, Vsevolod"]
[Black "Sharifov, Mekhriddin"]
[WhiteFideId "24176842"]
[BlackFideId "14701545"]
[WhiteElo "2376"]
[BlackElo "2109"]
[Result "1/2-1/2"]
[Round "10"]
[TimeControl "180+1"]
[Date "2022.11.30"]
[WhiteClock "0:00:07"]
[BlackClock "0:00:11"]

1. Nf3 {[%clk 0:03:00]}  a6 {[%clk 0:03:00]} 2. e4 {[%clk 0:02:58]}  c5 {[%clk 0:03:01]} 3. c3 {[%clk 0:02:57]}  d5 {[%clk 0:03:00]} 4. exd5 {[%clk 0:02:53]}  Qxd5 {[%clk 0:03:01]} 5. d4 {[%clk 0:02:54]}  Nf6 {[%clk 0:03:00]} 6. Be3 {[%clk 0:02:39]}  Nc6 {[%clk 0:03:00]} 7. Nbd2 {[%clk 0:02:35]}  cxd4 {[%clk 0:02:52]} 8. cxd4 {[%clk 0:02:34]}  Bg4 {[%clk 0:02:43]} 9. Bc4 {[%clk 0:02:30]}  Bxf3 {[%clk 0:02:41]} 10. Qxf3 {[%clk 0:02:27]}  Qxf3 {[%clk 0:02:40]} 11. Nxf3 {[%clk 0:02:28]}  e6 {[%clk 0:02:39]} 12. O-O {[%clk 0:02:16]}  Be7 {[%clk 0:02:38]} 13. Rfd1 {[%clk 0:02:09]}  Nb4 {[%clk 0:02:37]} 14. Rac1 {[%clk 0:02:04]}  O-O {[%clk 0:02:35]} 15. a3 {[%clk 0:02:01]}  Nbd5 {[%clk 0:02:35]} 16. Bd2 {[%clk 0:01:58]}  Rac8 {[%clk 0:02:35]} 17. Bd3 {[%clk 0:01:56]}  h6 {[%clk 0:02:32]} 18. Kf1 {[%clk 0:01:52]}  Rfd8 {[%clk 0:02:29]} 19. Rxc8 {[%clk 0:01:44]}  Rxc8 {[%clk 0:02:29]} 20. Rc1 {[%clk 0:01:34]}  Rd8 {[%clk 0:02:30]} 21. g3 {[%clk 0:01:29]}  Bd6 {[%clk 0:02:13]} 22. Ba5 {[%clk 0:01:28]}  Re8 {[%clk 0:02:04]} 23. Be1 {[%clk 0:01:18]}  Nd7 {[%clk 0:02:00]} 24. Nd2 {[%clk 0:01:16]}  Be7 {[%clk 0:01:54]} 25. f3 {[%clk 0:01:00]}  Bf6 {[%clk 0:01:53]} 26. Bf2 {[%clk 0:01:00]}  Rd8 {[%clk 0:01:48]} 27. Ne4 {[%clk 0:00:58]}  Be7 {[%clk 0:01:48]} 28. Nd2 {[%clk 0:00:50]}  g6 {[%clk 0:01:43]} 29. Nb3 {[%clk 0:00:48]}  Bg5 {[%clk 0:01:30]} 30. Rc2 {[%clk 0:00:25]}  Be3 {[%clk 0:01:17]} 31. Ke2 {[%clk 0:00:17]}  Bxf2 {[%clk 0:01:15]} 32. Kxf2 {[%clk 0:00:18]}  Rb8 {[%clk 0:00:48]} 33. Ke2 {[%clk 0:00:17]}  Kg7 {[%clk 0:00:48]} 34. Be4 {[%clk 0:00:17]}  N7f6 {[%clk 0:00:48]} 35. Bd3 {[%clk 0:00:17]}  Rd8 {[%clk 0:00:46]} 36. Na5 {[%clk 0:00:16]}  Rd7 {[%clk 0:00:45]} 37. Nb3 {[%clk 0:00:17]}  Ne8 {[%clk 0:00:44]} 38. Nc5 {[%clk 0:00:16]}  Rc7 {[%clk 0:00:44]} 39. Nb3 {[%clk 0:00:15]}  Nd6 {[%clk 0:00:44]} 40. Rxc7 {[%clk 0:00:15]}  Nxc7 {[%clk 0:00:44]} 41. Kd2 {[%clk 0:00:14]}  Kf6 {[%clk 0:00:44]} 42. Nc5 {[%clk 0:00:14]}  Ke7 {[%clk 0:00:42]} 43. Ne4 {[%clk 0:00:13]}  f5 {[%clk 0:00:41]} 44. Nc3 {[%clk 0:00:12]}  g5 {[%clk 0:00:39]} 45. Ke3 {[%clk 0:00:12]}  b5 {[%clk 0:00:35]} 46. Kd2 {[%clk 0:00:12]}  Kd7 {[%clk 0:00:34]} 47. Ke3 {[%clk 0:00:10]}  Nde8 {[%clk 0:00:34]} 48. Kd2 {[%clk 0:00:11]}  Nf6 {[%clk 0:00:34]} 49. Ke3 {[%clk 0:00:10]}  Ncd5+ {[%clk 0:00:35]} 50. Kd2 {[%clk 0:00:11]}  Kd6 {[%clk 0:00:35]} 51. Ne2 {[%clk 0:00:11]}  Nb6 {[%clk 0:00:32]} 52. Nc3 {[%clk 0:00:09]}  Nfd5 {[%clk 0:00:32]} 53. Ne2 {[%clk 0:00:09]}  h5 {[%clk 0:00:33]} 54. Nc1 {[%clk 0:00:08]}  Na4 {[%clk 0:00:33]} 55. Kc2 {[%clk 0:00:07]}  Nab6 {[%clk 0:00:32]} 56. Kd2 {[%clk 0:00:07]}  Nf6 {[%clk 0:00:32]} 57. Ne2 {[%clk 0:00:08]}  Nfd7 {[%clk 0:00:32]} 58. Nc3 {[%clk 0:00:08]}  Nf6 {[%clk 0:00:31]} 59. Ne2 {[%clk 0:00:08]}  g4 {[%clk 0:00:28]} 60. Ke3 {[%clk 0:00:06]}  Nbd5+ {[%clk 0:00:26]} 61. Kf2 {[%clk 0:00:06]}  gxf3 {[%clk 0:00:26]} 62. Kxf3 {[%clk 0:00:07]}  Ke7 {[%clk 0:00:18]} 63. h3 {[%clk 0:00:07]}  Kf7 {[%clk 0:00:18]} 64. Nf4 {[%clk 0:00:06]}  Nxf4 {[%clk 0:00:16]} 65. Kxf4 {[%clk 0:00:07]}  Kg6 {[%clk 0:00:16]} 66. Ke5 {[%clk 0:00:07]}  Kf7 {[%clk 0:00:16]} 67. Kf4 {[%clk 0:00:07]}  Kg7 {[%clk 0:00:10]} 68. Ke5 {[%clk 0:00:07]}  Kf7 {[%clk 0:00:11]} 69. Kf4 {[%clk 0:00:07]} 1/2-1/2


[Site "https://www.chess.com"]